bitfinex-derivatives/quotes_ETHF0:USTF0_20241230
["timestamp","ask_amount","ask_price","bid_price","bid_amount"]
[1735569927184,3.2078,3335.0,3333.9,43.0205]
[1735569927391,3.50829,3335.0,3334.7,0.30052]
[1735569927579,3.2078,3335.4,3334.6,3.2078]
[1735569928087,0.30041,3336.0,3335.5,0.30044]
[1735569928394,3.2078,3336.1,3335.1,2.2205]
[1735569928881,3.2078,3336.1,3335.2,3.2078]
[1735569929083,0.3004,3336.0,3335.4,0.30045]
[1735569929384,3.2078,3336.4,3335.3,3.2078]
[1735569930082,0.30041,3335.9,3335.3,3.2078]
[1735569930389,0.30045,3335.5,3335.3,3.2078]
[1735569930577,0.75094,3336.3,3335.3,3.2078]
[1735569930578,3.2078,3335.8,3335.3,3.2078]
[1735569930784,0.30045,3335.4,3335.3,3.2078]
[1735569930979,0.30043,3335.7,3335.3,3.2078]
[1735569931181,4.6788,3336.2,3335.3,3.2078]
[1735569931690,0.30039,3336.1,3335.7,0.30043]
[1735569931885,0.30041,3336.0,3335.5,0.30044]
[1735569932090,3.2078,3336.2,3335.3,3.2078]
[1735569932390,0.30042,3335.9,3335.4,0.30045]
[1735569932585,3.50819,3336.2,3335.7,0.30042]
[1735569932788,3.50819,3336.2,3335.8,0.30041]
[1735569932789,3.50818,3336.2,3335.8,0.30041]
[1735569932978,3.2078,3336.6,3336.4,0.30036]
[1735569933183,3.50815,3336.6,3335.8,3.2078]
[1735569933390,3.2078,3336.6,3336.4,0.30036]
[1735569933591,3.2078,3336.6,3335.8,3.2078]
[1735569933889,3.2078,3336.6,3336.5,0.30035]
[1735569934085,3.2078,3337.5,3336.3,3.2078]
[1735569934288,3.2078,3337.5,3337.2,0.30029]
[1735569934490,3.2078,3337.5,3336.7,3.2078]
[1735569935287,3.2078,3337.5,3337.3,0.30028]
[1735569935588,3.2078,3337.5,3336.7,8.2078]
[1735569935791,3.2078,3338.1,3337.3,3.2078]
[1735569935983,0.30026,3337.6,3337.3,3.50808]
[1735569936181,0.30027,3337.5,3337.3,3.2078]
[1735569936387,0.30026,3337.6,3337.3,3.2078]
[1735569936590,3.2078,3338.1,3336.9,3.2078]
[1735569936591,3.2078,3337.7,3336.9,3.2078]
[1735569936782,3.2078,3337.7,3336.4,45.3835]
[1735569936783,3.2078,3337.2,3336.4,4.5835]
[1735569936983,0.30039,3336.1,3335.9,3.2078]
[1735569937185,0.75085,3336.7,3335.5,3.2078]
[1735569937392,0.30036,3336.5,3335.7,0.30042]
[1735569937587,3.2078,3336.6,3335.5,3.2078]
[1735569937890,0.30044,3335.7,3335.1,5.5523]
[1735569938089,3.2078,3336.3,3335.5,3.2078]
[1735569938485,3.2078,3336.3,3335.1,2.3445]
[1735569938486,3.2078,3335.8,3335.1,2.3445]
[1735569938687,3.2078,3335.8,3335.0,5.5289]
[1735569939189,0.30047,3335.3,3335.1,3.50828]
[1735569939488,0.75094,3336.4,3335.1,3.50828]
[1735569939489,0.30042,3335.8,3335.5,0.30044]
[1735569939785,5.42666463,3336.6,3336.3,0.30037]
[1735569939786,0.30035,3336.6,3336.3,0.30037]
[1735569939986,3.2078,3337.2,3336.2,3.2078]
[1735569940186,3.2078,3337.2,3336.4,0.30036]
[1735569940187,0.30034,3336.7,3336.4,0.30036]
[1735569940392,3.2078,3337.2,3336.4,0.30036]
[1735569940588,3.2078,3337.2,3336.2,3.2078]
[1735569940786,3.95855,3337.2,3336.2,3.2078]
[1735569940983,0.30036,3336.5,3336.3,0.30037]
[1735569941481,0.30035,3336.6,3336.4,0.30036]
[1735569941685,3.95855,3337.2,3336.3,0.30037]
[1735569941885,0.75076,3337.1,3336.2,3.2078]
[1735569942089,0.75076,3337.1,3336.3,0.30037]
[1735569942591,0.30037,3336.4,3336.2,3.2078]
[1735569942897,0.30037,3336.3,3336.2,3.2078]
[1735569943096,0.7508,3336.9,3336.2,3.2078]
[1735569943899,0.30037,3336.4,3336.2,3.50818]
[1735569944095,0.30036,3336.5,3336.3,0.30037]
[1735569944494,3.2078,3337.2,3336.2,3.2078]
[1735569944693,0.30034,3336.7,3336.5,0.30035]
[1735569944895,0.30033,3336.8,3336.5,0.30035]
[1735569945305,0.30034,3336.7,3336.5,0.30035]
[1735569945511,0.30034,3336.7,3336.3,0.30037]
[1735569945702,3.2078,3337.6,3336.6,3.2078]
[1735569945904,0.30025,3337.7,3337.5,0.30026]
[1735569946213,3.2078,3338.0,3337.2,3.2078]
[1735569946502,1.478,3338.2,3337.7,3.2078]
[1735569946706,0.30023,3337.9,3337.7,3.2078]
[1735569946898,3.2078,3338.5,3337.7,3.2078]
[1735569947302,3.2078,3338.5,3338.3,0.30019]
[1735569947608,3.2078,3338.5,3337.7,3.2078]
[1735569948002,3.20577463,3338.4,3337.2,3.2078]
[1735569948204,3.20577463,3338.4,3337.5,3.2078]
[1735569948205,9.14357463,3338.4,3337.5,3.2078]
[1735569948403,0.3002,3338.3,3337.8,0.30023]
[1735569948596,3.7182,3338.4,3337.7,3.2078]
[1735569948806,0.3002,3338.2,3337.8,0.30024]
[1735569948997,2.2402,3338.4,3337.8,0.30024]
[1735569949202,3.2078,3338.6,3338.0,0.30021]
[1735569949402,0.30019,3338.4,3338.0,0.30022]
[1735569949596,0.3002,3338.3,3338.0,0.30022]
[1735569949803,3.2078,3338.6,3337.8,0.30023]
[1735569949804,0.30021,3338.2,3337.8,0.30023]
[1735569950115,3.2078,3338.6,3337.7,3.2078]
[1735569950405,3.2078,3338.2,3337.2,0.30029]
[1735569950612,4.6858,3338.2,3337.1,3.2078]
[1735569950907,0.30021,3338.1,3337.5,3.2078]
[1735569951103,3.2078,3338.6,3338.0,3.2078]
[1735569951309,3.50797,3338.6,3338.0,3.50801]
[1735569951505,3.50797,3338.6,3338.1,0.3002]
[1735569951506,0.30017,3338.6,3338.1,0.3002]
[1735569951701,3.2078,3339.0,3338.0,3.2078]
[1735569951901,3.2078,3339.0,3338.1,40.8]
[1735569952202,0.30018,3338.5,3338.1,41.10021]
[1735569952405,3.2078,3339.0,3338.1,41.10021]
[1735569952605,0.30018,3338.5,3338.1,41.10021]
[1735569952808,3.2078,3339.0,3338.1,40.8]
[1735569952998,3.2078,3339.0,3338.0,3.2078]
[1735569952999,0.3002,3338.2,3338.0,3.2078]
[1735569953707,0.3002,3338.3,3338.0,3.50802]
[1735569953912,0.30021,3338.1,3338.0,3.2078]
[1735569954208,3.2078,3339.0,3338.0,3.2078]
[1735569954803,0.30021,3338.1,3338.0,3.2078]
[1735569955509,3.2078,3338.4,3338.0,3.2078]
[1735569955811,8.2078,3338.4,3337.1,3.2078]
[1735569956009,3.2078,3337.9,3337.1,3.2078]
[1735569956510,3.2078,3337.9,3337.2,40.8]
[1735569956808,3.2078,3337.9,3337.2,2.1761]
[1735569957406,3.2078,3337.9,3337.2,42.9761]
[1735569957606,3.2078,3337.9,3337.2,40.8]
[1735569957801,3.2078,3337.9,3337.1,3.2078]
[1735569958505,8.2078,3337.9,3337.2,40.8]
[1735569958710,2.3355,3337.8,3337.2,40.8]
[1735569958912,4.6675,3337.8,3337.1,3.2078]
[1735569959106,1.478,3337.7,3337.1,3.2078]
[1735569959306,1.478,3337.7,3337.2,40.8]
[1735569959507,1.478,3337.7,3337.1,3.2078]
[1735569960006,1.478,3337.7,3337.1,44.0078]
[1735569960707,3.2078,3337.4,3337.1,40.8]
[1735569960908,3.2078,3337.4,3336.6,3.2078]
[1735569961110,8.2078,3337.4,3336.6,3.2078]
[1735569961417,3.2078,3337.4,3336.6,44.0078]
[1735569962512,3.2078,3337.4,3336.0,3.2078]
[1735569962513,3.2078,3336.8,3336.0,3.2078]
[1735569962705,1.478,3336.7,3336.0,3.2078]
[1735569962911,3.8404,3336.7,3336.0,3.2078]
[1735569963115,3.2078,3336.3,3335.8,0.95425]
[1735569963613,3.2078,3335.9,3335.8,0.95425]
[1735569963812,3.2078,3335.9,3335.0,3.2078]
[1735569964216,1.478,3335.8,3335.1,40.8]
[1735569964717,3.2078,3335.5,3335.1,40.8]
[1735569965515,1.478,3335.8,3335.1,44.0078]
[1735569965719,3.2078,3336.1,3335.1,44.0078]
[1735569966122,3.2078,3336.1,3335.1,3.2078]
[1735569966123,3.2078,3335.5,3335.1,3.2078]
[1735569966622,3.2078,3335.5,3334.6,3.2078]
[1735569966919,3.2078,3335.5,3334.4,40.8]
[1735569966920,3.2078,3335.0,3334.4,40.8]
[1735569967115,3.2078,3334.5,3334.4,40.8]
[1735569967418,3.2078,3334.5,3333.6,3.2078]
[1735569967819,3.2078,3334.0,3333.4,6.98173866]
[1735569968621,3.2078,3333.6,3333.4,6.98173866]
[1735569969120,3.2078,3333.6,3333.0,2.2302]
[1735569970720,3.2078,3333.6,3332.7,5.4723]
[1735569970923,1.469,3333.5,3332.7,5.4723]
[1735569971122,1.469,3333.5,3332.7,3.2078]
[1735569972922,1.469,3333.5,3332.3,40.8]
[1735569972923,3.2078,3332.9,3332.3,40.8]
[1735569973130,3.2078,3332.4,3331.4,3.2078]
[1735569973434,3.2078,3331.9,3331.4,3.2078]
[1735569973622,3.2078,3331.9,3331.8,40.8]
[1735569973823,3.2078,3332.3,3331.8,40.8]
[1735569974019,4.6768,3332.5,3331.8,40.8]
[1735569974230,3.2078,3332.4,3331.8,40.8]
[1735569974630,3.2078,3331.9,3331.8,40.8]
[1735569976227,3.2078,3331.9,3331.0,3.2078]
[1735569976421,3.2078,3331.5,3330.4,3.2078]
[1735569976825,3.2078,3331.1,3330.5,40.8]
[1735569978032,3.2078,3331.5,3330.9,3.2078]
[1735569978233,3.772,3332.8,3331.4,3.2078]
[1735569978430,3.772,3332.8,3331.8,3.2078]
[1735569978431,2.302,3332.8,3331.8,3.2078]
[1735569978632,4.6778,3332.9,3331.8,3.2078]
[1735569978944,9.6778,3332.9,3332.3,40.8]
[1735569979335,3.2078,3332.4,3332.3,40.8]
[1735569980034,3.2078,3332.4,3331.8,3.2078]
[1735569980230,6.41357463,3332.5,3331.3,3.2078]
[1735569980431,6.41357463,3332.5,3331.9,40.8]
[1735569980735,3.2078,3332.1,3331.9,40.8]
[1735569981136,1.47,3332.0,3330.9,3.2078]
[1735569981329,4.6778,3332.0,3330.9,3.2078]
[1735569981533,4.6778,3332.0,3331.4,40.8]
[1735569981934,4.6778,3332.0,3331.5,2.1947]
[1735569982529,3.2078,3332.4,3331.5,2.1947]
[1735569982731,3.2078,3333.1,3332.3,3.2078]
[1735569982939,3.2078,3332.8,3331.9,3.2078]
[1735569983941,3.2078,3332.4,3331.9,3.2078]
[1735569984441,3.2078,3332.0,3331.6,2.3115]
[1735569984640,5.0,3332.4,3331.6,5.5193]
[1735569984641,1.471,3332.1,3331.6,5.5193]
[1735569985039,3.2078,3332.4,3331.6,5.5193]
[1735569985442,3.2078,3332.8,3332.0,3.2078]
[1735569985738,3.2078,3333.2,3332.4,3.2078]
[1735569986144,3.2078,3332.8,3332.0,3.2078]
[1735569986848,3.2078,3332.8,3332.1,40.8]
[1735569987435,3.2078,3332.8,3332.0,3.2078]
[1735569988945,1.471,3333.2,3332.6,3.2078]
[1735569988946,4.6788,3333.2,3332.6,3.2078]
[1735569989346,4.6788,3333.2,3332.7,4.8182]
[1735569989537,4.6788,3333.2,3332.6,3.2078]
[1735569989538,3.20577463,3333.0,3332.2,3.2078]
[1735569989743,3.2078,3332.8,3332.2,3.2078]
[1735569992148,3.2078,3333.8,3332.6,3.2078]
[1735569992349,1.471,3334.3,3333.4,3.2078]
[1735569993052,3.2078,3334.1,3333.0,3.2078]
[1735569993348,3.2078,3334.1,3333.4,3.2078]
[1735569993947,1.471,3334.3,3333.9,3.2078]
[1735569994247,3.2078,3334.6,3333.8,3.2078]
[1735569994551,3.2078,3334.6,3333.9,2.3919]
[1735569994745,3.2078,3334.6,3333.9,4.7233]
[1735569995047,6.41357463,3335.5,3334.5,3.2078]
[1735569995243,0.24349444,3335.6,3334.0,3.2078]
[1735569995244,6.41357463,3335.0,3334.0,3.2078]
[1735569995643,11.41357463,3335.0,3334.0,3.2078]
[1735569995853,6.41357463,3335.0,3334.0,3.2078]
[1735569996245,11.41357463,3335.0,3334.0,3.2078]
[1735569996447,6.41357463,3334.5,3333.6,3.2078]
[1735569996753,3.7479,3334.4,3333.6,3.2078]
[1735569997051,3.20577463,3334.0,3333.6,3.2078]
[1735569997250,3.2078,3333.8,3333.1,3.2078]
[1735569997457,6.41357463,3333.4,3332.6,3.2078]
[1735569997746,4.67577463,3333.3,3332.6,3.2078]
[1735569998347,7.09057463,3333.3,3332.6,3.2078]
[1735569998547,12.09057463,3333.3,3332.6,3.2078]
[1735570000256,3.2078,3333.4,3332.6,3.2078]
[1735570003951,3.20577463,3333.3,3332.6,3.2078]
[1735570004956,8.20577463,3333.3,3332.6,3.2078]
[1735570005259,3.20577463,3333.3,3332.6,3.2078]
[1735570005557,8.20577463,3333.3,3332.6,3.2078]
[1735570006564,3.20577463,3332.8,3332.2,3.2078]
[1735570006756,3.2078,3332.4,3331.6,5.4194]
[1735570007061,4.67777463,3332.3,3331.6,3.2078]
[1735570007555,6.41357463,3331.8,3331.1,3.2078]
[1735570007862,6.41357463,3331.8,3331.0,2.2116]
[1735570008161,11.41357463,3331.8,3330.9,40.8]
[1735570009062,2.3049,3331.7,3330.7,3.2078]
[1735570009562,7.3049,3331.7,3330.7,3.2078]
[1735570009959,7.3049,3331.7,3330.6,40.8]
[1735570009960,3.20577463,3331.3,3330.6,40.8]
[1735570010163,3.2078,3330.9,3330.6,40.8]
[1735570010361,3.2078,3330.9,3330.3,3.2078]
[1735570010558,1.472,3331.2,3330.3,3.2078]
[1735570010757,3.2078,3330.9,3330.3,3.2078]
[1735570011459,3.2078,3330.4,3329.9,6.98173866]
[1735570011857,1.472,3330.3,3329.9,6.98173866]
[1735570012158,4.67777463,3330.3,3329.6,3.2078]
[1735570012857,1.472,3330.3,3329.6,3.2078]
[1735570014960,9.67777463,3330.3,3329.6,3.2078]
[1735570015264,3.2078,3330.0,3329.2,2.2853]
[1735570015454,3.20577463,3329.8,3329.1,3.2078]
[1735570015656,8.20577463,3329.8,3329.1,3.2078]
[1735570017661,3.2078,3330.0,3329.1,3.2078]
[1735570018666,4.67877463,3330.3,3328.6,40.8]
[1735570018667,1.473,3330.3,3329.6,3.2078]
[1735570018964,1.473,3330.3,3329.7,4.6043]
[1735570019558,3.2078,3330.4,3329.7,4.6043]
[1735570019866,3.2078,3330.0,3329.1,3.2078]
[1735570020261,3.20577463,3329.8,3329.1,3.2078]
[1735570020569,3.20577463,3329.8,3328.7,7.8121]
[1735570020570,3.2078,3329.6,3328.7,7.8121]
[1735570020760,1.473,3329.5,3328.7,7.8121]
[1735570021761,3.2078,3330.0,3329.1,3.2078]
[1735570022067,3.20577463,3330.8,3329.9,3.2078]
[1735570022268,5.53367091,3331.0,3330.3,3.2078]
[1735570022768,3.2078,3331.0,3330.4,2.2676]
[1735570023761,3.20577463,3330.8,3330.3,3.2078]
[1735570024361,4.67877463,3330.8,3330.3,3.2078]
[1735570024563,1.473,3330.8,3330.3,3.2078]
[1735570025065,3.20577463,3331.3,3330.7,3.2078]
[1735570025264,3.2078,3331.4,3330.7,3.2078]
[1735570025464,3.20577463,3331.3,3330.7,3.2078]
[1735570025967,3.2078,3331.0,3330.2,3.2078]
[1735570027567,3.20577463,3330.8,3330.2,3.2078]
[1735570027964,3.20577463,3330.8,3329.9,2.2181]
[1735570027965,3.20577463,3330.3,3329.9,2.2181]
[1735570028265,3.20577463,3330.8,3329.9,2.2181]
[1735570028664,3.2078,3330.1,3329.9,2.2181]
[1735570028866,6.41357463,3330.8,3329.9,2.2181]
[1735570029666,3.20577463,3330.3,3329.6,3.2078]
[1735570030368,8.20577463,3330.3,3329.6,3.2078]
[1735570030776,3.2078,3329.7,3329.2,2.317]
[1735570031067,4.6658,3329.7,3329.2,2.317]
[1735570031271,4.6658,3329.7,3328.6,3.2078]
[1735570031567,3.2078,3328.9,3328.4,43.1311]
[1735570032073,3.2078,3328.9,3328.4,2.3311]
[1735570032573,3.20577463,3329.3,3328.5,3.2078]
[1735570032574,6.41357463,3329.3,3328.5,3.2078]
[1735570032871,3.2078,3329.3,3328.5,3.2078]
[1735570033265,3.2078,3329.7,3329.0,3.2078]
[1735570033473,4.6658,3330.1,3329.5,3.2078]
[1735570033773,3.2078,3330.1,3329.5,3.2078]
[1735570034476,3.2078,3329.6,3328.8,3.2078]
[1735570034771,3.2078,3329.2,3328.6,2.3375]
[1735570034971,4.6658,3329.2,3328.6,2.3375]
[1735570035877,3.2078,3328.8,3328.6,2.3375]
[1735570036572,3.2078,3328.8,3327.7,3.2078]
[1735570036765,3.2078,3328.3,3327.7,3.2078]
[1735570036966,3.2078,3328.3,3327.7,8.2078]
[1735570037775,3.2078,3329.0,3328.2,3.2078]
[1735570038073,2.2437,3330.1,3328.7,3.2078]
[1735570038074,3.2078,3329.5,3328.7,3.2078]
[1735570038282,3.2078,3329.9,3328.8,10.3738]
[1735570038575,3.2078,3329.9,3328.8,7.9099]
[1735570038977,3.2078,3329.9,3329.2,3.2078]
[1735570040469,1.458,3329.8,3329.2,3.2078]
[1735570040670,1.458,3329.8,3329.0,3.2078]
[1735570040874,1.458,3329.8,3328.8,4.7021]
[1735570041078,1.458,3329.8,3329.0,3.2078]
[1735570041471,3.2078,3329.5,3329.0,3.2078]
[1735570041672,3.2078,3329.5,3328.6,3.2078]
[1735570041881,3.2078,3329.5,3328.2,3.2078]
[1735570042076,3.2078,3329.1,3328.2,3.2078]
[1735570042269,3.2078,3329.1,3328.3,3.2078]
[1735570042572,3.2078,3329.1,3328.0,4.9163]
[1735570043485,3.2078,3329.1,3328.2,3.2078]
[1735570043983,3.2078,3329.1,3328.2,8.2078]
[1735570044183,3.2078,3329.9,3328.7,3.2078]
[1735570044381,3.2078,3329.9,3329.1,3.2078]
[1735570045477,3.2078,3329.9,3329.2,2.3469]
[1735570045673,5.53164554,3330.7,3329.7,3.2078]
[1735570045877,5.53164554,3330.7,3329.9,3.2078]
[1735570045878,3.20577463,3330.7,3329.9,3.2078]
[1735570046173,3.2078,3330.3,3329.5,3.2078]
[1735570046373,3.2078,3330.3,3329.3,2.2474]
[1735570046374,3.20577463,3329.7,3329.2,4.6439]
[1735570046580,3.2078,3329.5,3327.8,4.68062931]
[1735570046775,3.2078,3327.9,3327.8,4.68062931]
[1735570047177,3.2078,3327.9,3327.7,11.6173677]
[1735570048582,3.2078,3327.9,3327.4,3.2078]
[1735570049889,3.2078,3327.9,3327.5,4.8482]
[1735570050385,3.2078,3328.3,3327.8,3.2078]
[1735570051482,3.20577463,3328.1,3327.5,4.8482]
[1735570051682,3.2078,3327.8,3327.3,4.69075789]
[1735570051880,3.20577463,3327.6,3327.3,4.69075789]
[1735570052084,3.2078,3327.4,3327.3,4.69075789]
[1735570052486,3.2078,3327.4,3327.1,7.03613683]
[1735570052692,3.2078,3327.4,3326.9,4.69075789]
[1735570052986,3.2078,3327.0,3326.9,4.69075789]
[1735570053191,4.6658,3327.0,3326.9,4.69075789]
[1735570054388,3.2078,3327.0,3326.1,2.4626]
[1735570054890,3.2078,3327.0,3326.4,3.2078]
[1735570055488,3.2078,3326.5,3326.1,2.4626]
[1735570056089,3.2078,3326.5,3325.8,4.69075789]
[1735570056283,3.2078,3325.9,3325.8,4.69075789]
[1735570056485,3.2078,3325.9,3325.5,4.69075789]
[1735570056689,3.20577463,3325.6,3325.5,4.69075789]
[1735570057696,4.66377463,3325.6,3325.5,4.69075789]
[1735570057897,4.66377463,3325.6,3324.3,7.89855789]
[1735570058092,6.41357463,3325.1,3324.3,4.69075789]
[1735570058294,1.458,3325.6,3324.3,4.69075789]
[1735570058295,3.20577463,3324.6,3324.3,4.69075789]
[1735570059598,3.20577463,3324.6,3323.4,5.5743]
[1735570059798,3.2078,3324.2,3323.5,3.2078]
[1735570060296,3.2078,3324.2,3323.6,9.7868]
[1735570061295,3.2078,3324.7,3324.0,3.2078]
[1735570061791,3.20577463,3324.3,3324.0,3.2078]
[1735570061993,3.2078,3324.2,3323.6,4.7868]
[1735570064700,3.2078,3324.2,3323.7,40.8]
[1735570065191,3.2078,3324.2,3323.7,45.8]
[1735570065391,3.2078,3324.2,3323.7,40.8]
[1735570065592,3.2078,3324.2,3323.8,3.2078]
[1735570065898,3.2078,3324.2,3323.7,40.8]
[1735570066092,3.2078,3324.2,3323.4,3.2078]
[1735570066596,3.2078,3324.2,3323.4,8.2078]
[1735570066894,3.2078,3324.6,3323.8,3.2078]
[1735570067293,3.2078,3325.1,3324.5,3.2078]
[1735570067598,4.66577463,3325.8,3324.6,3.2078]
[1735570067895,3.20577463,3325.8,3325.1,3.2078]
[1735570068092,3.2078,3326.0,3325.1,3.2078]
[1735570068287,3.2078,3325.6,3324.7,4.8002]
[1735570068491,3.2078,3325.6,3324.7,8.008]
[1735570069597,3.2078,3325.2,3324.7,3.2078]
[1735570069798,6.41357463,3324.8,3323.7,8.008]
[1735570069995,3.2078,3324.4,3323.7,8.008]
[1735570070194,3.20577463,3324.3,3323.7,8.008]
[1735570071102,4.8491,3325.1,3323.7,9.8002]
[1735570071103,6.41357463,3324.8,3323.7,9.8002]
[1735570071301,6.41357463,3324.8,3323.7,4.8002]
[1735570075207,1.46,3324.7,3323.7,4.8002]
[1735570076007,3.20577463,3324.3,3323.7,4.8002]
[1735570076200,1.46,3324.7,3323.7,4.8002]
[1735570077596,6.41357463,3324.8,3323.7,4.8002]
[1735570077806,7.87357463,3324.8,3323.7,4.8002]
[1735570079606,3.20577463,3324.8,3324.0,3.2078]
[1735570079806,3.2078,3325.2,3324.4,3.2078]
[1735570080307,3.2078,3325.2,3324.4,8.2078]
[1735570080514,3.2078,3325.2,3324.0,3.2078]
[1735570080709,3.20577463,3324.8,3324.0,3.2078]
[1735570081907,2.5065,3325.1,3324.4,3.2078]
[1735570082206,2.96109059,3324.9,3324.4,3.2078]
[1735570082406,2.96109059,3324.5,3324.4,3.2078]
[1735570082610,2.96109059,3324.5,3323.9,3.2078]
[1735570083512,2.96109059,3324.9,3323.9,3.2078]
[1735570083706,2.96109059,3324.9,3324.3,3.2078]
[1735570084513,2.96109059,3324.5,3323.8,3.2078]
[1735570085807,3.2078,3325.0,3324.2,3.2078]
[1735570086016,2.96109059,3324.9,3324.2,3.2078]
[1735570086316,2.96109059,3324.9,3324.6,3.2078]
[1735570086513,2.96109059,3325.3,3324.6,3.2078]
[1735570086716,2.96109059,3325.3,3324.7,4.6015]
[1735570087016,2.96109059,3325.7,3325.0,3.2078]
[1735570087212,2.96109059,3325.7,3325.4,3.2078]
[1735570087515,3.2078,3326.2,3325.4,3.2078]
[1735570087815,3.2078,3326.2,3325.5,2.489]
[1735570088117,2.96109059,3326.6,3326.1,3.2078]
[1735570088618,2.96109059,3326.6,3325.7,3.2078]
[1735570088812,2.96109059,3325.8,3325.3,3.2078]
[1735570089022,3.2078,3325.7,3325.0,4.8061]
[1735570089315,2.96109059,3325.4,3325.0,4.8061]
[1735570089621,3.2078,3325.7,3325.0,9.8061]
[1735570090109,3.2078,3325.1,3324.6,4.69075789]
[1735570090315,2.96109059,3325.0,3324.6,4.69075789]
[1735570091004,2.96109059,3325.0,3324.3,4.8061]
[1735570091616,2.96109059,3324.6,3324.3,4.8061]
[1735570091812,2.96109059,3324.6,3324.0,3.2078]
[1735570093114,2.96109059,3324.6,3324.0,8.2078]
[1735570093411,2.96109059,3325.0,3324.0,8.2078]
[1735570093716,2.96109059,3325.0,3324.6,3.2078]
[1735570093918,2.32587091,3326.7,3324.7,4.8407]
[1735570093919,2.96109059,3325.4,3324.7,4.8407]
[1735570094317,2.96109059,3325.4,3324.7,9.8407]
[1735570094613,3.2078,3325.6,3324.7,9.8407]
[1735570094919,3.2078,3325.6,3324.8,2.463]
[1735570095318,2.96109059,3325.8,3325.5,3.2078]
[1735570096024,2.96109059,3326.2,3325.5,8.2078]
[1735570096210,2.96109059,3326.2,3325.9,3.2078]
[1735570096717,2.96109059,3326.2,3325.6,4.6676]
[1735570096918,2.96109059,3326.2,3325.6,45.4676]
[1735570097319,2.96109059,3326.2,3325.6,4.6676]
[1735570097522,2.96109059,3325.8,3325.6,4.6676]
[1735570097717,2.96109059,3325.8,3325.6,45.4676]
[1735570098118,6.16889059,3325.8,3325.1,4.69075789]
[1735570098319,6.16889059,3325.2,3325.1,4.69075789]
[1735570098625,9.12998118,3325.2,3325.0,7.03613683]
[1735570098820,6.16889059,3325.2,3325.0,6.43038683]
[1735570099723,6.16889059,3325.2,3324.1,9.38151578]
[1735570099925,3.2078,3324.8,3324.1,9.38151578]
[1735570100127,3.2078,3324.8,3324.1,14.38151578]
[1735570100422,6.16889059,3325.2,3324.4,3.2078]
[1735570100625,2.96109059,3325.6,3324.8,3.2078]
[1735570100823,6.16889059,3326.0,3325.3,3.2078]
[1735570101221,6.16889059,3326.0,3325.4,2.4545]
[1735570102027,6.16889059,3326.0,3325.4,5.6623]
[1735570102417,2.32587091,3326.1,3325.5,2.4611]
[1735570102729,2.32587091,3326.1,3326.0,3.2078]
[1735570102932,2.32587091,3326.6,3326.0,3.2078]
[1735570103123,2.32587091,3326.6,3325.6,5.5318]
[1735570103422,3.2078,3326.4,3325.5,2.4611]
[1735570103629,3.2078,3326.0,3325.5,2.4611]
[1735570103826,3.2078,3325.6,3325.0,3.2078]
[1735570104021,3.2078,3325.6,3324.8,9.38151578]
[1735570104329,3.2078,3325.6,3324.5,4.905]
[1735570104330,3.2078,3325.6,3324.9,9.38151578]
[1735570104531,3.2078,3325.2,3324.9,9.38151578]
[1735570105726,3.2078,3325.2,3324.5,4.905]
[1735570106124,3.2078,3325.2,3324.5,9.905]
[1735570106432,3.2078,3325.2,3324.5,4.905]
[1735570107129,3.2078,3325.2,3324.5,45.705]
[1735570107525,3.2078,3325.2,3324.5,50.705]
[1735570108927,3.2078,3325.7,3324.9,3.2078]
[1735570110320,6.16889059,3325.7,3324.9,3.2078]
[1735570111329,3.2078,3325.7,3324.9,3.2078]
[1735570111628,6.16889059,3325.7,3324.9,3.2078]
[1735570112329,6.16889059,3325.7,3324.5,4.905]
[1735570112330,3.2078,3325.1,3324.5,4.905]
[1735570112530,3.2078,3324.6,3324.4,9.44237572]
[1735570112826,3.2078,3324.6,3324.3,9.44237572]
[1735570113327,3.2078,3324.9,3324.3,9.44237572]
[1735570113523,3.20595529,3324.9,3324.3,9.44237572]
[1735570114128,3.20595529,3324.9,3324.1,3.2078]
[1735570114335,3.20595529,3324.9,3324.1,8.2078]
[1735570114828,3.20595529,3324.9,3324.1,3.2078]
[1735570115033,3.20595529,3324.9,3324.2,4.90456251]
[1735570115433,6.16704588,3324.9,3324.2,4.90456251]
[1735570115934,3.2078,3324.4,3324.2,4.90456251]
[1735570116440,3.2078,3324.9,3324.1,3.2078]
[1735570118235,3.2078,3324.9,3324.2,40.8]
[1735570119135,3.2078,3324.9,3324.1,3.2078]
[1735570120234,3.2078,3324.9,3324.2,40.8]
[1735570120436,3.2078,3324.9,3324.2,45.70551026]
[1735570121340,3.2078,3324.9,3324.2,50.70551026]
[1735570121742,3.2078,3324.9,3324.3,4.90551026]
[1735570122139,3.2078,3324.9,3324.3,9.90551026]
[1735570122551,3.2078,3324.9,3324.3,4.90551026]
[1735570123247,3.2078,3324.9,3324.3,9.90551026]
[1735570123446,3.2078,3325.3,3324.5,3.2078]
[1735570124251,4.72922766,3325.5,3324.9,3.2078]
[1735570124552,2.3951,3325.5,3324.9,3.2078]
[1735570125047,3.2078,3325.7,3324.9,3.2078]
[1735570125542,3.2078,3325.7,3325.0,2.4938]
[1735570125747,3.2078,3325.7,3324.9,3.2078]
[1735570127046,2.33412766,3326.0,3325.3,3.2078]
[1735570127245,5.54192766,3326.1,3325.4,2.4938]
[1735570127446,5.54192766,3326.1,3325.4,7.4938]
[1735570127644,5.54192766,3326.1,3325.5,4.7362]
[1735570127844,5.54192766,3326.1,3325.5,2.4256]
[1735570128251,8.50301825,3326.1,3325.5,2.4256]
[1735570128444,3.2078,3325.7,3324.9,3.2078]